[Event "FIDE WSTC Open 65 2025"]
[Site "Prague"]
[Date "2025.02.18"]
[Round "2.42"]
[White "Dovzhenko, Viktor"]
[Black "Volkmer, Andreas"]
[Result "0-1"]
[Annotator "ChessBase"]
[ECO "A00"]
[WhiteElo "2058"]
[BlackElo "2173"]
[PlyCount "54"]
[EventDate "2025.02.17"]
[EventType "team-tourn"]
[EventCountry "CZE"]
[SourceTitle "playchess.com"]
[Source "ChessBase"]
[SourceQuality "1"]
[TimeControl "40/5400+30:1800+30"]

1. d3 {[%emt 0:00:04]} g6 {[%emt 0:00:34]} 2. h4 {[%emt 0:02:29]} h5 {[%emt 0:01:20]} 3. Nf3 {[%emt 0:00:15]} Bg7 {[%emt 0:02:01]} 4. e4 {[%emt 0:03:14]} c5 {[%emt 0:00:05]} 5. Nc3 {[%emt 0:06:57]} Nc6 {[%emt 0:00:51]} 6. Be3 {[%emt 0:00:30]} d6 {[%emt 0:00:30]} 7. d4 {[%emt 0:00:49]} cxd4 {[%emt 0:19:04]} 8. Nxd4 {[%emt 0:00:12]} Nf6 {[%emt 0:00:24]} 9. Be2 {[%emt 0:05:19]} Ne5 {[%emt 0:13:51]} 10. Qd2 {[%emt 0:07:06]} Bd7 {[%emt 0:04:48]} 11. f4 {[%emt 0:04:44]} Neg4 {[%emt 0:00:37]} 12. Bg1 {[%emt 0:00:11]} Rc8 {[%emt 0:03:01]} 13. Nf3 {[%emt 0:09:52]} Qa5 {[%emt 0:03:20]} 14. O-O-O {[%emt 0:06:34]} O-O {[%emt 0:09:47]} 15. e5 {[%emt 0:13:59]} dxe5 {[%emt 0:07:19]} 16. Nxe5 {[%emt 0:05:13]} Be6 {[%emt 0:02:16]} 17. Qd4 {[%emt 0:04:27]} Bh6 {[%emt 0:12:13]} 18. Nd3 {[%emt 0:12:15]} b6 {[%emt 0:07:58]} 19. Bxg4 {[%emt 0:03:13]} Nxg4 {[%emt 0:01:14]} 20. Qe4 {[%emt 0:05:31]} Rc4 {[%emt 0:01:41]} 21. Qb7 {[%emt 0:05:06]} Bg7 {[%emt 0:00:27]} 22. Qxe7 {[%emt 0:00:32]} Rxc3 {[%emt 0:00:25]} 23. bxc3 {[%emt 0:00:39]} Bxc3 {[%emt 0:00:02]} 24. Rf1 {[%emt 0:01:34]} Qxa2 {[%emt 0:00:36]} 25. Kd1 {[%emt 0:00:53]} Qb1+ {[%emt 0:02:50]} 26. Nc1 {[%emt 0:00:20]} Bf5 {[%emt 0:00:28]} 27. Ke2 {[%emt 0:00:53]} Qb5+ {[%emt 0:01:10]} 0-1

[Event "FIDE WSTC Open 65 2025"]
[Site "Prague"]
[Date "2025.02.18"]
[Round "2.43"]
[White "Schulz, Michael"]
[Black "Karnaukh, Anatolij"]
[Result "1/2-1/2"]
[Annotator "NA"]
[ECO "A45"]
[WhiteElo "2115"]
[BlackElo "1983"]
[PlyCount "56"]
[EventDate "2025.02.17"]
[EventType "team-tourn"]
[EventCountry "CZE"]
[SourceTitle "playchess.com"]
[Source "ChessBase"]
[SourceQuality "1"]
[TimeControl "40/5400+30:1800+30"]

1. d4 {[%emt 0:00:02]} Nf6 {[%emt 0:00:19]} 2. Bg5 {[%emt 0:00:06]} Ne4 {[%emt 0:01:15]} 3. Bf4 {[%emt 0:00:06]} d5 {[%emt 0:02:11]} 4. f3 {[%emt 0:00:12]} Nf6 {[%emt 0:00:35]} 5. e4 {[%emt 0:00:13]} c5 {[%emt 0:03:14]} 6. e5 {[%emt 0:06:13]} Nfd7 {[%emt 0:00:39]} 7. c3 {[%emt 0:00:41]} e6 {[%emt 0:01:38]} 8. Be3 {[%emt 0:00:12]} Nc6 {[%emt 0:00:33]} 9. f4 {[%emt 0:00:18]} Qb6 {[%emt 0:05:00]} 10. Qd2 {[%emt 0:01:08]} a5 {[%emt 0:09:50]} 11. a4 {[%emt 0:07:23]} cxd4 {[%emt 0:04:28]} 12. cxd4 {[%emt 0:00:18]} Qb4 {[%emt 0:03:02]} 13. Nc3 {[%emt 0:03:23]} Nb6 {[%emt 0:00:07]} 14. Nf3 {[%emt 0:06:07]} Nc4 {[%emt 0:01:23]} 15. Bxc4 {[%emt 0:00:36]} Qxc4 {[%emt 0:00:10]} 16. Qe2 {[%emt 0:02:17]} Qxe2+ {[%emt 0:06:23]} 17. Kxe2 {[%emt 0:00:08]} Bb4 {[%emt 0:00:07]} 18. Nb5 {[%emt 0:05:59]} O-O {[%emt 0:04:01]} 19. Rhc1 {[%emt 0:05:48]} Bd7 {[%emt 0:00:22]} 20. Bd2 {[%emt 0:06:51]} Be7 {[%emt 0:01:20]} 21. Ne1 {[%emt 0:02:53]} Rfc8 {[%emt 0:01:11]} 22. Nd3 {[%emt 0:02:49]} b6 {[%emt 0:02:15]} 23. b3 {[%emt 0:02:49]} h5 {[%emt 0:13:25]} 24. g3 {[%emt 0:00:36]} g6 {[%emt 0:00:29]} 25. h4 {[%emt 0:00:26]} Kf8 {[%emt 0:00:50]} 26. Ke3 {[%emt 0:06:55]} Ke8 {[%emt 0:00:42]} 27. Rc2 {[%emt 0:03:29]} Kd8 {[%emt 0:00:13]} 28. Rac1 {[%emt 0:00:55]} Na7 {[%emt 0:05:30]} 1/2-1/2

[Event "FIDE WSTC Open 65 2025"]
[Site "Prague"]
[Date "2025.02.18"]
[Round "2.44"]
[White "Malienko, Alexander"]
[Black "Raitza, Olaf"]
[Result "1-0"]
[Annotator "NA"]
[ECO "B02"]
[WhiteElo "1911"]
[BlackElo "2037"]
[PlyCount "97"]
[EventDate "2025.02.17"]
[EventType "team-tourn"]
[EventCountry "CZE"]
[SourceTitle "playchess.com"]
[Source "ChessBase"]
[SourceQuality "1"]
[TimeControl "40/5400+30:1800+30"]

1. e4 {[%emt 0:00:08]} Nf6 {[%emt 0:00:05]} 2. Nc3 {[%emt 0:02:03]} d5 {[%emt 0:00:11]} 3. e5 {[%emt 0:00:46]} Nfd7 {[%emt 0:00:05]} 4. Nxd5 {[%emt 0:00:46]} Nxe5 {[%emt 0:00:37]} 5. Ne3 {[%emt 0:00:15]} c5 {[%emt 0:01:44]} 6. b3 {[%emt 0:06:46]} Nbc6 {[%emt 0:10:05]} 7. Bb2 {[%emt 0:00:24]} Ng6 {[%emt 0:01:20]} 8. Nf3 {[%emt 0:02:28]} e5 {[%emt 0:01:07]} 9. Bb5 {[%emt 0:02:21]} Bd6 {[%emt 0:08:24]} 10. Bxc6+ {[%emt 0:15:39]} bxc6 {[%emt 0:00:01]} 11. d3 {[%emt 0:00:41]} O-O {[%emt 0:08:00]} 12. Qd2 {[%emt 0:06:06]} Be6 {[%emt 0:07:16]} 13. O-O-O {[%emt 0:02:05]} f6 {[%emt 0:09:44]} 14. h4 {[%emt 0:05:02]} Nf4 {[%emt 0:03:22]} 15. h5 {[%emt 0:04:21]} Bc7 {[%emt 0:13:46]} 16. Nh4 {[%emt 0:29:42]} Ba5 {[%emt 0:05:07]} 17. c3 {[%emt 0:00:12]} Qd7 {[%emt 0:00:06]} 18. g3 {[%emt 0:03:11]} Nxh5 {[%emt 0:02:46]} 19. Ba3 {[%emt 0:02:29]} Bb6 {[%emt 0:02:40]} 20. Qe2 {[%emt 0:00:49]} g6 {[%emt 0:00:24]} 21. d4 {[%emt 0:00:37]} exd4 {[%emt 0:05:09]} 22. cxd4 {[%emt 0:00:29]} cxd4 {[%emt 0:01:08]} 23. Bxf8 {[%emt 0:00:38]} Rxf8 {[%emt 0:00:12]} 24. Nc4 {[%emt 0:01:07]} Bg4 {[%emt 0:01:06]} 25. Nxb6 {[%emt 0:03:14]} axb6 {[%emt 0:06:46]} 26. Qc4+ {[%emt 0:00:14]} Be6 {[%emt 0:00:58]} 27. Qxd4 {[%emt 0:00:42]} Qxd4 {[%emt 0:00:18]} 28. Rxd4 {[%emt 0:00:18]} Bd5 {[%emt 0:00:04]} 29. Rg1 {[%emt 0:01:31]} Ng7 {[%emt 0:02:41]} 30. Ng2 {[%emt 0:00:32]} Nf5 {[%emt 0:01:34]} 31. Rd2 {[%emt 0:00:30]} Re8 {[%emt 0:01:06]} 32. g4 {[%emt 0:01:51]} Ng7 {[%emt 0:03:44]} 33. Ne3 {[%emt 0:00:27]} Be4 {[%emt 0:00:50]} 34. Nc4 {[%emt 0:02:19]} Rb8 {[%emt 0:00:05]} 35. Rgd1 {[%emt 0:01:48]} Bd5 {[%emt 0:01:52]} 36. Ne3 {[%emt 0:00:15]} Bf3 {[%emt 0:00:01]} 37. Rd8+ {[%emt 0:00:16]} Rxd8 {[%emt 0:00:03]} 38. Rxd8+ {[%emt 0:00:04]} Kf7 {[%emt 0:00:11]} 39. Rd7+ {[%emt 0:01:15]} Kf8 {[%emt 0:00:01]} 40. a4 {[%emt 0:01:01]} h5 {[%emt 0:00:12]} 41. gxh5 {[%emt 0:30:34]} gxh5 {[%emt 0:30:01]} 42. b4 {[%emt 0:02:38]} f5 {[%emt 0:02:28]} 43. Kd2 {[%emt 0:01:17]} f4 {[%emt 0:02:00]} 44. Nf1 {[%emt 0:00:37]} Nf5 {[%emt 0:00:00]} 45. a5 {[%emt 0:00:00]} bxa5 {[%emt 0:00:00]} 46. bxa5 {[%emt 0:00:00]} Ke8 {[%emt 0:00:00]} 47. Rd3 {[%emt 0:00:00]} Be4 {[%emt 0:00:00]} 48. a6 {[%emt 0:00:00]} c5 {[%emt 0:00:00]} 49. Rb3 {[%emt 0:00:00]} 1-0

[Event "FIDE WSTC Open 65 2025"]
[Site "Prague"]
[Date "2025.02.18"]
[Round "2.45"]
[White "Fegan, Chris"]
[Black "Knaak, Rainer"]
[Result "1/2-1/2"]
[Annotator "ChessBase"]
[ECO "A01"]
[WhiteElo "1997"]
[BlackElo "2464"]
[PlyCount "73"]
[EventDate "2025.02.17"]
[EventType "team-tourn"]
[EventCountry "CZE"]
[SourceTitle "playchess.com"]
[Source "ChessBase"]
[SourceQuality "1"]
[TimeControl "40/5400+30:1800+30"]

1. b3 {[%emt 0:00:03]} e5 {[%emt 0:00:18]} 2. Bb2 {[%emt 0:00:07]} Nc6 {[%emt 0:00:22]} 3. d3 {[%emt 0:00:38]} d5 {[%emt 0:00:48]} 4. Nf3 {[%emt 0:00:38]} f6 {[%emt 0:04:41]} 5. g3 {[%emt 0:01:35]} Be6 {[%emt 0:00:19]} 6. Bg2 {[%emt 0:00:29]} Qd7 {[%emt 0:00:14]} 7. O-O {[%emt 0:00:27]} Bh3 {[%emt 0:02:27]} 8. e4 {[%emt 0:01:09]} Bxg2 {[%emt 0:09:07]} 9. Kxg2 {[%emt 0:00:37]} O-O-O {[%emt 0:00:36]} 10. exd5 {[%emt 0:01:52]} Qxd5 {[%emt 0:00:05]} 11. Nc3 {[%emt 0:01:03]} Qd7 {[%emt 0:01:13]} 12. Qe2 {[%emt 0:02:37]} h5 {[%emt 0:01:18]} 13. h4 {[%emt 0:02:56]} Nh6 {[%emt 0:00:29]} 14. Rad1 {[%emt 0:01:12]} Nf5 {[%emt 0:01:38]} 15. Ne4 {[%emt 0:07:08]} Be7 {[%emt 0:01:19]} 16. c3 {[%emt 0:02:38]} Qd5 {[%emt 0:02:50]} 17. Rfe1 {[%emt 0:07:42]} Rd7 {[%emt 0:01:34]} 18. b4 {[%emt 0:07:36]} Qxa2 {[%emt 0:20:44]} 19. b5 {[%emt 0:10:39]} Nb8 {[%emt 0:00:40]} 20. c4 {[%emt 0:04:43]} Ba3 {[%emt 0:18:00]} 21. Rd2 {[%emt 0:05:37]} Bxb2 {[%emt 0:00:18]} 22. Rxb2 {[%emt 0:00:11]} Qa3 {[%emt 0:00:14]} 23. Rd1 {[%emt 0:01:05]} a6 {[%emt 0:01:47]} 24. Qc2 {[%emt 0:06:47]} Rhd8 {[%emt 0:07:43]} 25. Rb3 {[%emt 0:02:11]} Qe7 {[%emt 0:00:07]} 26. bxa6 {[%emt 0:03:17]} Nxa6 {[%emt 0:00:09]} 27. Rdb1 {[%emt 0:00:52]} c6 {[%emt 0:07:39]} 28. c5 {[%emt 0:11:46]} Rc7 {[%emt 0:01:23]} 29. Rb6 {[%emt 0:07:07]} Rd5 {[%emt 0:06:34]} 30. Rc1 {[%emt 0:05:10]} Rcd7 {[%emt 0:01:27]} 31. Nfd2 {[%emt 0:02:09]} Kd8 {[%emt 0:01:24]} 32. Qa4 {[%emt 0:02:22]} Rxd3 {[%emt 0:03:17]} 33. Qxa6 {[%emt 0:01:28]} Ke8 {[%emt 0:02:10]} 34. Qa8+ {[%emt 0:00:20]} Kf7 {[%emt 0:00:16]} 35. Nc4 {[%emt 0:00:26]} Kg6 {[%emt 0:00:59]} 36. Rcb1 {[%emt 0:00:27]} Qe6 {[%emt 0:00:12]} 37. Ncd6 {[%emt 0:00:34]} 1/2-1/2

[Event "FIDE WSTC Open 65 2025"]
[Site "Prague"]
[Date "2025.02.18"]
[Round "2.46"]
[White "Jussupow, Artur"]
[Black "Hymer, Barry"]
[Result "1-0"]
[Annotator "ChessBase"]
[ECO "A43"]
[WhiteElo "2559"]
[BlackElo "1913"]
[PlyCount "41"]
[EventDate "2025.02.17"]
[EventType "team-tourn"]
[EventCountry "CZE"]
[SourceTitle "playchess.com"]
[Source "ChessBase"]
[SourceQuality "1"]
[TimeControl "40/5400+30:1800+30"]

1. d4 {[%emt 0:00:04]} Nf6 {[%emt 0:00:09]} 2. Nf3 {[%emt 0:00:11]} c5 {[%emt 0:00:08]} 3. d5 {[%emt 0:00:41]} b5 {[%emt 0:00:09]} 4. Bg5 {[%emt 0:00:33]} Bb7 {[%emt 0:00:18]} 5. Bxf6 {[%emt 0:00:39]} gxf6 {[%emt 0:00:06]} 6. e4 {[%emt 0:00:47]} f5 {[%emt 0:00:07]} 7. exf5 {[%emt 0:00:46]} Bg7 {[%emt 0:00:10]} 8. Nc3 {[%emt 0:01:02]} Qb6 {[%emt 0:08:42]} 9. Be2 {[%emt 0:07:15]} a6 {[%emt 0:10:50]} 10. O-O {[%emt 0:08:17]} d6 {[%emt 0:00:08]} 11. a4 {[%emt 0:04:13]} c4 {[%emt 0:04:02]} 12. axb5 {[%emt 0:16:22]} axb5 {[%emt 0:00:13]} 13. Rxa8 {[%emt 0:00:06]} Bxa8 {[%emt 0:00:04]} 14. Ne4 {[%emt 0:00:08]} Nd7 {[%emt 0:00:21]} 15. b3 {[%emt 0:03:05]} cxb3 {[%emt 0:07:36]} 16. cxb3 {[%emt 0:00:06]} O-O {[%emt 0:01:02]} 17. Qd3 {[%emt 0:00:43]} Ne5 {[%emt 0:07:47]} 18. Nxe5 {[%emt 0:01:02]} Bxe5 {[%emt 0:00:12]} 19. Rd1 {[%emt 0:03:42]} e6 {[%emt 0:11:10]} 20. Qh3 {[%emt 0:04:11]} h6 {[%emt 0:15:06]} 21. f6 {[%emt 0:01:39]} 1-0

[Event "FIDE WSTC Open 65 2025"]
[Site "Prague"]
[Date "2025.02.18"]
[Round "2.47"]
[White "Kane, Robert"]
[Black "Meister, Jakob"]
[Result "0-1"]
[Annotator "ChessBase"]
[ECO "A05"]
[WhiteElo "1859"]
[BlackElo "2418"]
[PlyCount "102"]
[EventDate "2025.02.17"]
[EventType "team-tourn"]
[EventCountry "CZE"]
[SourceTitle "playchess.com"]
[Source "ChessBase"]
[SourceQuality "1"]
[TimeControl "40/5400+30:1800+30"]

1. Nf3 {[%emt 0:00:11]} Nf6 {[%emt 0:00:09]} 2. g3 {[%emt 0:00:19]} c5 {[%emt 0:00:31]} 3. Bg2 {[%emt 0:00:24]} Nc6 {[%emt 0:00:13]} 4. d3 {[%emt 0:00:31]} g6 {[%emt 0:00:25]} 5. O-O {[%emt 0:01:16]} Bg7 {[%emt 0:00:02]} 6. e4 {[%emt 0:00:42]} O-O {[%emt 0:00:12]} 7. Nbd2 {[%emt 0:01:43]} d6 {[%emt 0:00:22]} 8. c3 {[%emt 0:01:36]} e5 {[%emt 0:04:31]} 9. a4 {[%emt 0:03:34]} Rb8 {[%emt 0:01:21]} 10. Qe2 {[%emt 0:10:06]} a6 {[%emt 0:02:44]} 11. h3 {[%emt 0:06:07]} Re8 {[%emt 0:00:42]} 12. Kh2 {[%emt 0:07:09]} b5 {[%emt 0:01:38]} 13. Ne1 {[%emt 0:09:38]} Qc7 {[%emt 0:02:42]} 14. Nc2 {[%emt 0:02:34]} Bb7 {[%emt 0:03:28]} 15. Ne3 {[%emt 0:02:18]} Ne7 {[%emt 0:00:56]} 16. Ng4 {[%emt 0:03:53]} d5 {[%emt 0:15:59]} 17. Nxf6+ {[%emt 0:16:01]} Bxf6 {[%emt 0:00:08]} 18. h4 {[%emt 0:01:18]} Bg7 {[%emt 0:02:51]} 19. axb5 {[%emt 0:04:29]} axb5 {[%emt 0:00:02]} 20. exd5 {[%emt 0:00:47]} Bxd5 {[%emt 0:01:12]} 21. Bxd5 {[%emt 0:03:37]} Nxd5 {[%emt 0:00:31]} 22. Qf3 {[%emt 0:00:26]} Rbd8 {[%emt 0:04:28]} 23. Nb3 {[%emt 0:05:19]} Rd7 {[%emt 0:06:52]} 24. Be3 {[%emt 0:06:20]} Bf8 {[%emt 0:03:52]} 25. h5 {[%emt 0:03:05]} f5 {[%emt 0:04:15]} 26. c4 {[%emt 0:03:38]} bxc4 {[%emt 0:01:37]} 27. dxc4 {[%emt 0:00:02]} e4 {[%emt 0:00:20]} 28. Qe2 {[%emt 0:02:29]} Nxe3 {[%emt 0:01:13]} 29. fxe3 {[%emt 0:00:30]} Red8 {[%emt 0:00:49]} 30. Rfd1 {[%emt 0:02:02]} Bd6 {[%emt 0:03:22]} 31. hxg6 {[%emt 0:00:50]} hxg6 {[%emt 0:00:17]} 32. Kg2 {[%emt 0:00:19]} Bxg3 {[%emt 0:03:16]} 33. Rxd7 {[%emt 0:00:03]} Rxd7 {[%emt 0:00:11]} 34. Ra8+ {[%emt 0:00:08]} Kg7 {[%emt 0:01:52]} 35. Nxc5 {[%emt 0:00:32]} Qxc5 {[%emt 0:00:50]} 36. Kxg3 {[%emt 0:00:05]} Rd3 {[%emt 0:00:35]} 37. Ra3 {[%emt 0:00:42]} Qd6+ {[%emt 0:05:40]} 38. Kh3 {[%emt 0:00:27]} Rd2 {[%emt 0:03:33]} 39. Ra7+ {[%emt 0:00:33]} Kf6 {[%emt 0:01:19]} 40. Ra6 {[%emt 0:01:55]} Rxe2 {[%emt 0:03:41]} 41. Rxd6+ {[%emt 0:30:06]} Kg5 {[%emt 0:30:34]} 42. b4 {[%emt 0:00:00]} Rxe3+ {[%emt 0:00:00]} 43. Kg2 {[%emt 0:00:00]} f4 {[%emt 0:00:00]} 44. b5 {[%emt 0:00:00]} Re2+ {[%emt 0:00:00]} 45. Kf1 {[%emt 0:00:00]} Rb2 {[%emt 0:00:00]} 46. b6 {[%emt 0:00:00]} Kg4 {[%emt 0:00:00]} 47. c5 {[%emt 0:00:00]} e3 {[%emt 0:00:00]} 48. c6 {[%emt 0:00:00]} Kf3 {[%emt 0:00:00]} 49. Kg1 {[%emt 0:00:00]} Rxb6 {[%emt 0:00:00]} 50. c7 {[%emt 0:00:00]} Rb1+ {[%emt 0:00:00]} 51. Kh2 {[%emt 0:00:00]} Rc1 {[%emt 0:00:00]} 0-1

[Event "FIDE WSTC Open 65 2025"]
[Site "Prague"]
[Date "2025.02.18"]
[Round "2.48"]
[White "Koehler, Gerhard"]
[Black "De Winter, Kevin"]
[Result "1/2-1/2"]
[Annotator "ChessBase"]
[ECO "A25"]
[WhiteElo "2215"]
[BlackElo "1808"]
[PlyCount "72"]
[EventDate "2025.02.17"]
[EventType "team-tourn"]
[EventCountry "CZE"]
[SourceTitle "playchess.com"]
[Source "ChessBase"]
[SourceQuality "1"]
[TimeControl "40/5400+30:1800+30"]

1. c4 {[%emt 0:00:04]} e5 {[%emt 0:00:20]} 2. g3 {[%emt 0:00:08]} Nc6 {[%emt 0:00:28]} 3. Bg2 {[%emt 0:00:08]} g6 {[%emt 0:00:35]} 4. Nc3 {[%emt 0:00:08]} Bg7 {[%emt 0:00:35]} 5. e3 {[%emt 0:00:13]} Nge7 {[%emt 0:05:02]} 6. Nge2 {[%emt 0:00:42]} O-O {[%emt 0:01:59]} 7. O-O {[%emt 0:00:27]} d6 {[%emt 0:01:28]} 8. d3 {[%emt 0:01:13]} f5 {[%emt 0:01:20]} 9. Rb1 {[%emt 0:00:14]} a5 {[%emt 0:07:21]} 10. a3 {[%emt 0:01:57]} Bd7 {[%emt 0:17:08]} 11. b4 {[%emt 0:04:49]} axb4 {[%emt 0:00:32]} 12. axb4 {[%emt 0:00:16]} Qc8 {[%emt 0:01:56]} 13. Qb3 {[%emt 0:02:39]} Kh8 {[%emt 0:10:08]} 14. Bd2 {[%emt 0:01:43]} f4 {[%emt 0:00:54]} 15. exf4 {[%emt 0:10:20]} Bh3 {[%emt 0:07:14]} 16. Nd5 {[%emt 0:01:31]} Bxg2 {[%emt 0:02:19]} 17. Kxg2 {[%emt 0:00:12]} exf4 {[%emt 0:05:10]} 18. Ndxf4 {[%emt 0:03:34]} Nf5 {[%emt 0:03:24]} 19. c5 {[%emt 0:12:12]} Ncd4 {[%emt 0:08:44]} 20. Qc4 {[%emt 0:06:23]} Nxe2 {[%emt 0:07:16]} 21. Nxe2 {[%emt 0:00:14]} dxc5 {[%emt 0:01:08]} 22. bxc5 {[%emt 0:00:46]} Qd7 {[%emt 0:01:08]} 23. Bc3 {[%emt 0:02:05]} Qc6+ {[%emt 0:00:28]} 24. Qe4 {[%emt 0:02:53]} Bxc3 {[%emt 0:05:07]} 25. Qxc6 {[%emt 0:01:20]} bxc6 {[%emt 0:00:02]} 26. Nxc3 {[%emt 0:00:18]} Ra3 {[%emt 0:00:27]} 27. Ne4 {[%emt 0:11:35]} Rxd3 {[%emt 0:01:46]} 28. Rfd1 {[%emt 0:00:33]} Rfd8 {[%emt 0:04:17]} 29. Rxd3 {[%emt 0:01:02]} Rxd3 {[%emt 0:00:01]} 30. Rb7 {[%emt 0:00:58]} Rd7 {[%emt 0:00:44]} 31. g4 {[%emt 0:01:44]} Nd4 {[%emt 0:01:46]} 32. g5 {[%emt 0:05:25]} Ne6 {[%emt 0:01:40]} 33. Kg3 {[%emt 0:02:38]} Kg7 {[%emt 0:00:34]} 34. h4 {[%emt 0:00:28]} h6 {[%emt 0:00:31]} 35. f3 {[%emt 0:01:04]} hxg5 {[%emt 0:00:21]} 36. hxg5 {[%emt 0:00:13]} Rd5 {[%emt 0:00:45]} 1/2-1/2

[Event "FIDE WSTC Open 65 2025"]
[Site "Prague"]
[Date "2025.02.19"]
[Round "3.1"]
[White "Nunn, John D M"]
[Black "Uddenfeldt, Dan"]
[Result "1-0"]
[Annotator "TA"]
[ECO "B07"]
[WhiteElo "2533"]
[BlackElo "2311"]
[PlyCount "41"]
[EventDate "2025.02.17"]
[EventType "team-tourn"]
[EventCountry "CZE"]
[SourceTitle "playchess.com"]
[Source "ChessBase"]
[SourceQuality "1"]
[TimeControl "40/5400+30:1800+30"]

{[%evp 14,41,75,60,70,41,136,128,138,33,105,117,205,200,184,195,192,189,362,354,331,170,331,304,314,280,446,437,472,315]} 1. e4 {[%emt 0:00:09]} g6 {[%emt 0:00:27]} 2. d4 {[%emt 0:00:09]} d6 {[%emt 0:00:59]} 3. Nc3 {[%emt 0:00:09]} Bg7 {[%emt 0:00:33]} 4. Be3 {[%emt 0:00:15]} Nf6 {[%emt 0:01:07]} 5. Qd2 {[%emt 0:01:13]} c6 {[%emt 0:01:24]} 6. Bh6 {[%emt 0:04:45]} O-O {[%emt 0:01:39]} 7. O-O-O {[%emt 0:05:24]} b5 {[%emt 0:01:41][%cal Bb7b5,Bb5b4][%mdl 32]} 8. f3 {[%emt 0:04:16]} b4 {[%emt 0:05:34] 8...b4 scores better than 8...Qa5. B07: Pirc Defence: Miscellaneous Systems.} 9. Nb1 {[%emt 0:03:41]} Qb6 {[%emt 0:07:32] [#]} (9... Bxh6 $14 10. Qxh6 Nbd7) 10. h4 $146 {[%emt 0:01:49][%cal Oh4h5]} ({Predecessor:} 10. Bxg7 Kxg7 11. g4 Be6 12. h4 Bxa2 13. h5 a5 14. hxg6 fxg6 15. e5 Ng8 16. Bd3 {1-0 Halama,V-Dusek,J Klatovy op 1995 (9)}) 10... Ba6 {[%emt 0:10:31] White is better.} 11. Ne2 {[%emt 0:06:31]} (11. Bxa6 $16 Qxa6 12. Bxg7 Kxg7 13. h5) 11... Nbd7 {[%emt 0:12:37]} ({Black should play} 11... Nh5 $1 $14) 12. h5 {[%emt 0:01:31]} Qa5 {[%emt 0:06:43]} (12... Nxh5 $2 13. Rxh5 Bxh6 (13... gxh5 14. Qg5) (13... Bxe2 $2 14. Bxg7 Nf6 15. Bxf6 $18) 14. Rxh6 $18) (12... Bxh6 $16 13. Qxh6 Rfe8) 13. hxg6 {[%emt 0:03:33]} fxg6 {[%emt 0:01:46]} 14. Bxg7 {[%emt 0:00:07]} Kxg7 {[%emt 0:00:10] [#]} 15. Nf4 $1 {[%emt 0:03:49][%cal Be2f4,Bf4d5,Bd5b4][%mdl 32] Bxa6 would now be deadly.} Kf7 $2 {[%emt 0:05:36]} (15... Bxf1 16. Ne6+ (16. Rhxf1 Qxa2 17. Qxb4 Kh8 $14) 16... Kg8) 16. Bxa6 {[%emt 0:03:12]} Qxa6 {[%emt 0:00:09]} 17. Qe3 {[%emt 0:15:19]} (17. Qxb4 Qxa2 18. b3 Kg8 $16) (17. e5 $142) 17... g5 $2 {[%emt 0:08:55]} (17... Qxa2 18. e5 $18) (17... Kg8) 18. Qb3+ $18 {[%emt 0:06:07]} d5 {[%emt 0:01:14]} 19. exd5 {[%emt 0:02:12]} cxd5 {[%emt 0:02:24]} (19... gxf4 {was necessary.} 20. dxc6+ (20. Qxb4 $2 {perishes.} Nxd5 21. Qe1 N7f6 $19) 20... Kg7) 20. Nxd5 {[%emt 0:00:10]} Qe6 {[%emt 0:00:27]} 21. Nxb4 {[%emt 0:00:23] Weighted Error Value: White=0.25 (precise) /Black=0.88  Mistake:       	White=2     	Black=6      Inaccurate:     	White=2     	---        OK:         	White=3     	Black=1      Strong:       	White=1     	---} 1-0

[Event "FIDE WSTC Open 65 2025"]
[Site "Prague"]
[Date "2025.02.19"]
[Round "3.2"]
[White "Renman, Nils-Gustaf"]
[Black "Flear, Glenn C"]
[Result "1-0"]
[Annotator "RC"]
[ECO "D38"]
[WhiteElo "2306"]
[BlackElo "2384"]
[PlyCount "65"]
[EventDate "2025.02.17"]
[EventType "team-tourn"]
[EventCountry "CZE"]
[SourceTitle "playchess.com"]
[Source "ChessBase"]
[SourceQuality "1"]
[TimeControl "40/5400+30:1800+30"]

1. d4 {[%emt 0:00:12]} Nf6 {[%emt 0:00:14]} 2. c4 {[%emt 0:00:06]} e6 {[%emt 0:00:08]} 3. Nf3 {[%emt 0:00:09]} d5 {[%emt 0:00:19]} 4. Nc3 {[%emt 0:00:12]} Bb4 {[%emt 0:00:42]} 5. cxd5 {[%emt 0:00:28]} exd5 {[%emt 0:00:19]} 6. Bg5 {[%emt 0:00:46]} h6 {[%emt 0:00:44]} 7. Bh4 {[%emt 0:00:55]} c5 {[%emt 0:15:51]} 8. dxc5 {[%emt 0:05:08]} Nc6 {[%emt 0:08:34]} 9. e3 {[%emt 0:00:38]} g5 {[%emt 0:05:22]} 10. Bg3 {[%emt 0:00:13]} Ne4 {[%emt 0:00:09]} 11. Rc1 {[%emt 0:09:40]} O-O {[%emt 0:04:46]} 12. Bd3 {[%emt 0:02:53]} Nxc3 {[%emt 0:08:58]} 13. bxc3 {[%emt 0:00:10]} Bxc5 {[%emt 0:00:12]} 14. h4 {[%emt 0:05:30]} g4 {[%emt 0:02:21]} 15. Nd4 {[%emt 0:01:46]} Re8 {[%emt 0:12:38]} 16. O-O {[%emt 0:24:33]} Bd6 {[%emt 0:05:47]} 17. Nf5 {[%emt 0:07:57]} Bxf5 {[%emt 0:01:21]} 18. Bxf5 {[%emt 0:00:04]} h5 {[%emt 0:00:49]} 19. Bb1 {[%emt 0:09:58]} Ne7 {[%emt 0:03:12]} 20. Qd3 {[%emt 0:03:19]} Ng6 {[%emt 0:01:30]} 21. Qf5 {[%emt 0:00:53]} Qb6 {[%emt 0:16:40]} 22. Qxh5 {[%emt 0:16:14]} Bxg3 {[%emt 0:01:55]} 23. fxg3 {[%emt 0:00:03]} Rxe3 {[%emt 0:00:27]} 24. Kh2 {[%emt 0:00:17]} Rc8 {[%emt 0:00:40]} 25. Qxg4 {[%emt 0:04:42]} Rc4 {[%emt 0:00:24]} 26. Qg5 {[%emt 0:02:37]} Re5 {[%emt 0:04:02]} 27. Rf5 {[%emt 0:00:58]} Qe3 {[%emt 0:02:18]} 28. Qd8+ {[%emt 0:01:43]} Kg7 {[%emt 0:02:05]} 29. Qf6+ {[%emt 0:00:35]} Kh6 {[%emt 0:00:26]} 30. Qxf7 {[%emt 0:00:55]} Rg4 {[%emt 0:01:23]} 31. Rf3 {[%emt 0:00:36]} Qxc1 {[%emt 0:00:14]} 32. Bxg6 {[%emt 0:00:04]} Rxg6 {[%emt 0:00:40]} 33. Qf8+ {[%emt 0:00:02]} 1-0